[Event "94th FRA-ch Open C 2019"]
[Site "Chartres"]
[Date "2019.08.21"]
[Round "5.4"]
[White "Silvera, Ruben"]
[Black "Shefay, Paul"]
[Result "0-1"]
[ECO "B22"]
[WhiteElo "1747"]
[BlackElo "1680"]
[Annotator "NA"]
[PlyCount "144"]
[EventDate "2019.08.17"]
[EventType "swiss"]
[EventCountry "FRA"]
[SourceTitle "playchess.com"]
[Source "ChessBase"]
[SourceQuality "1"]
[TimeControl "40/5400+30:1800+30"]

1. e4 {[%emt 0:00:00]} c5 {[%emt 0:00:00]} 2. Nf3 {[%emt 1:31:00]} Nc6 {[%emt 0:00:07]} 3. Bb5 {[%emt 0:00:00]} d6 {[%emt 0:00:42]} 4. O-O {[%emt 0:02:41]} Bd7 {[%emt 0:00:44]} 5. c3 {[%emt 0:00:30]} g6 {[%emt 0:02:20]} 6. d4 {[%emt 0:00:40]} Bg7 {[%emt 0:03:57]} 7. Be3 {[%emt 0:01:12]} cxd4 {[%emt 0:02:43]} 8. cxd4 {[%emt 0:01:03]} Nf6 {[%emt 0:02:49]} 9. Nc3 {[%emt 0:04:24]} O-O {[%emt 0:02:38]} 10. h3 {[%emt 0:02:43]} a6 {[%emt 0:04:21]} 11. Be2 {[%emt 0:03:09]} Rc8 {[%emt 1:15:09]} 12. d5 {[%emt 0:02:57]} Ne5 {[%emt 0:02:32]} 13. Nd2 {[%emt 0:06:03]} b5 {[%emt 0:06:05]} 14. Qb3 {[%emt 0:00:36]} Be8 {[%emt 0:13:30]} 15. a4 {[%emt 0:11:48]} bxa4 {[%emt 0:49:34]} 16. Nxa4 {[%emt 0:00:26]} Rb8 {[%emt 0:06:18]} 17. Qc2 {[%emt 0:00:46]} Bb5 {[%emt 0:00:16]} 18. Bxb5 {[%emt 1:00:02]} axb5 {[%emt 0:01:46]} 19. Nc3 {[%emt 0:00:21]} Nc4 {[%emt 0:00:41]} 20. Nxc4 {[%emt 0:13:01]} bxc4 {[%emt 0:00:21]} 21. Ne2 {[%emt 0:02:34]} Nd7 {[%emt 0:27:11]} 22. Qxc4 {[%emt 0:15:11]} Rxb2 {[%emt 0:00:35]} 23. Bd4 {[%emt 0:01:14]} Ne5 {[%emt 0:00:33]} 24. Qa6 {[%emt 0:00:49]} Rc2 {[%emt 0:04:36]} 25. f4 {[%emt 0:00:18]} Nd7 {[%emt 0:02:42]} 26. Bxg7 {[%emt 0:00:10]} Kxg7 {[%emt 0:00:08]} 27. Nd4 {[%emt 0:00:18]} Rc8 {[%emt 0:16:01]} 28. Nc6 {[%emt 0:00:51]} Qe8 {[%emt 0:08:37]} 29. Rfe1 {[%emt 0:10:11]} Nb8 {[%emt 0:00:19]} 30. Qb7 {[%emt 0:03:08]} Nxc6 {[%emt 0:08:54]} 31. dxc6 {[%emt 0:00:08]} Rxc6 {[%emt 0:00:00]} 32. Ra7 {[%emt 0:00:20]} e6 {[%emt 0:00:00]} 33. Rea1 {[%emt 0:00:16]} Qc8 {[%emt 0:00:00]} 34. Qb2+ {[%emt 0:06:36]} Kg8 {[%emt 0:00:00]} 35. Qf6 {[%emt 0:00:11]} Rc1+ {[%emt 0:00:00]} 36. Kh2 {[%emt 0:00:20]} Rxa1 {[%emt 0:00:00]} 37. Rxa1 {[%emt 0:00:06]} Qd8 {[%emt 0:00:00]} 38. Qd4 {[%emt 0:00:30]} Qc7 {[%emt 0:00:05]} 39. Ra7 {[%emt 0:01:12]} Qb8 {[%emt 0:04:25]} 40. Ra3 {[%emt 0:07:01]} e5 {[%emt 0:00:21]} 41. Qd2 {[%emt 0:31:23]} exf4 {[%emt 0:32:51]} 42. Qxf4 {[%emt 0:00:20]} Qc7 {[%emt 0:00:00]} 43. Rd3 {[%emt 0:00:00]} Rd8 {[%emt 0:00:00]} 44. Rd5 {[%emt 0:00:00]} Qe7 {[%emt 0:00:00]} 45. e5 {[%emt 0:00:00]} dxe5 {[%emt 0:00:00]} 46. Rxd8+ {[%emt 0:00:00]} Qxd8 {[%emt 0:00:00]} 47. Qxe5 {[%emt 0:00:00]} h5 {[%emt 0:00:00]} 48. g3 {[%emt 0:00:00]} Qc8 {[%emt 0:05:27]} 49. Qd5 {[%emt 0:00:00]} Qe6 {[%emt 0:00:00]} 50. Qd8+ {[%emt 0:00:00]} Kg7 {[%emt 0:00:00]} 51. Qd4+ {[%emt 0:00:00]} Qf6 {[%emt 0:00:00]} 52. Qe3 {[%emt 0:07:40]} Qd6 {[%emt 0:00:00]} 53. h4 {[%emt 0:08:10]} Qe6 {[%emt 0:00:00]} 54. Qd4+ {[%emt 0:00:00]} Kh7 {[%emt 0:08:27]} 55. Qf4 {[%emt 0:00:00]} Qe2+ {[%emt 0:00:00]} 56. Kh3 {[%emt 0:00:00]} Qa2 {[%emt 0:00:00]} 57. Qe3 {[%emt 0:00:00]} Qe6+ {[%emt 0:00:00]} 58. Qxe6 {[%emt 0:00:00]} fxe6 {[%emt 0:00:00]} 59. Kg2 {[%emt 0:00:00]} Kg7 {[%emt 0:00:00]} 60. Kf3 {[%emt 0:11:40]} Kf6 {[%emt 0:00:00]} 61. Kf4 {[%emt 0:00:00]} e5+ {[%emt 0:00:00]} 62. Ke4 {[%emt 0:01:30]} Ke6 {[%emt 0:00:00]} 63. Ke3 {[%emt 0:00:03]} Kf5 {[%emt 0:00:00]} 64. Kf3 {[%emt 0:00:04]} e4+ {[%emt 0:00:00]} 65. Ke3 {[%emt 0:00:01]} Ke5 {[%emt 0:00:00]} 66. Kf2 {[%emt 0:00:28]} Kd4 {[%emt 0:00:00]} 67. Ke2 {[%emt 0:00:22]} e3 {[%emt 0:00:00]} 68. Ke1 {[%emt 0:00:13]} Kd3 {[%emt 0:00:00]} 69. Kd1 {[%emt 0:00:11]} Kd4 {[%emt 0:00:00]} 70. Ke1 {[%emt 0:00:18]} Ke5 {[%emt 0:00:00]} 71. Ke2 {[%emt 0:00:10]} Ke4 {[%emt 0:00:00]} 72. Ke1 {[%emt 0:00:05]} Kf3 {[%emt 0:00:00]} 0-1

[Event "94th FRA-ch Open C 2019"]
[Site "Chartres"]
[Date "2019.08.21"]
[Round "5.5"]
[White "Rouquier, Matthias"]
[Black "Varin, Pierre-antoine"]
[Result "1/2-1/2"]
[ECO "A96"]
[WhiteElo "1735"]
[BlackElo "1677"]
[Annotator "NA"]
[PlyCount "80"]
[EventDate "2019.08.17"]
[EventType "swiss"]
[EventCountry "FRA"]
[SourceTitle "playchess.com"]
[Source "ChessBase"]
[SourceQuality "1"]
[TimeControl "40/5400+30:1800+30"]

1. d4 {[%emt 0:00:00]} e6 {[%emt 0:00:00]} 2. c4 {[%emt 0:00:00]} f5 {[%emt 0:00:00]} 3. Nf3 {[%emt 0:00:00]} Nf6 {[%emt 0:00:00]} 4. g3 {[%emt 0:00:00]} Be7 {[%emt 0:00:00]} 5. Bg2 {[%emt 0:00:00]} O-O {[%emt 0:00:56]} 6. O-O {[%emt 0:00:05]} d6 {[%emt 0:01:37]} 7. Nc3 {[%emt 0:02:58]} Ne4 {[%emt 0:00:19]} 8. Qc2 {[%emt 0:03:21]} Nxc3 {[%emt 0:00:08]} 9. Qxc3 {[%emt 0:00:42]} Bf6 {[%emt 0:00:32]} 10. Qc2 {[%emt 0:04:47]} g6 {[%emt 0:07:21]} 11. Rd1 {[%emt 0:08:19]} Nc6 {[%emt 0:05:24]} 12. Be3 {[%emt 0:06:09]} Qe7 {[%emt 0:05:51]} 13. d5 {[%emt 0:02:45]} Nb4 {[%emt 0:16:39]} 14. Qd2 {[%emt 0:05:26]} Na6 {[%emt 0:01:29]} 15. dxe6 {[%emt 0:03:43]} Bxe6 {[%emt 0:08:23]} 16. Nd4 {[%emt 0:08:55]} Bc8 {[%emt 0:05:24]} 17. Nb3 {[%emt 0:10:26]} Re8 {[%emt 0:07:28]} 18. Bf3 {[%emt 0:05:33]} Rd8 {[%emt 0:07:50]} 19. c5 {[%emt 0:11:04]} Nxc5 {[%emt 0:08:25]} 20. Nxc5 {[%emt 0:03:52]} dxc5 {[%emt 0:00:09]} 21. Qxd8+ {[%emt 0:00:08]} Qxd8 {[%emt 0:00:13]} 22. Rxd8+ {[%emt 0:00:01]} Bxd8 {[%emt 0:00:14]} 23. Bxc5 {[%emt 0:03:22]} Bf6 {[%emt 0:02:58]} 24. Rd1 {[%emt 0:01:26]} c6 {[%emt 0:02:31]} 25. b4 {[%emt 0:03:10]} Be6 {[%emt 0:01:52]} 26. a4 {[%emt 0:01:32]} a6 {[%emt 0:03:07]} 27. e4 {[%emt 0:02:56]} fxe4 {[%emt 0:03:15]} 28. Bxe4 {[%emt 0:00:11]} Kf7 {[%emt 0:00:27]} 29. h4 {[%emt 0:01:55]} Rd8 {[%emt 0:01:54]} 30. Rxd8 {[%emt 0:00:51]} Bxd8 {[%emt 0:00:06]} 31. Be3 {[%emt 0:03:01]} Bb3 {[%emt 0:01:51]} 32. a5 {[%emt 0:00:26]} Bd5 {[%emt 0:02:19]} 33. Bd3 {[%emt 0:01:37]} Be7 {[%emt 0:00:57]} 34. Bd2 {[%emt 0:00:08]} h5 {[%emt 0:00:53]} 35. f4 {[%emt 0:00:45]} Bf6 {[%emt 0:01:17]} 36. Kf2 {[%emt 0:00:49]} Bd4+ {[%emt 0:00:30]} 37. Be3 {[%emt 0:00:09]} Bc3 {[%emt 0:00:25]} 38. Bc5 {[%emt 0:00:05]} Bd2 {[%emt 0:01:15]} 39. Ke2 {[%emt 0:02:39]} Bc3 {[%emt 0:00:33]} 40. Kf2 {[%emt 0:01:22]} Be6 {[%emt 0:00:52]} 1/2-1/2

[Event "94th FRA-ch Open C 2019"]
[Site "Chartres"]
[Date "2019.08.21"]
[Round "5.6"]
[White "Bele, Charles"]
[Black "Dereusme, Jean-Marc"]
[Result "1-0"]
[ECO "C90"]
[WhiteElo "1678"]
[BlackElo "1727"]
[Annotator "NA"]
[PlyCount "75"]
[EventDate "2019.08.17"]
[EventType "swiss"]
[EventCountry "FRA"]
[SourceTitle "playchess.com"]
[Source "ChessBase"]
[SourceQuality "1"]
[TimeControl "40/5400+30:1800+30"]

1. e4 {[%emt 0:00:00]} e5 {[%emt 0:00:03]} 2. Nf3 {[%emt 0:00:00]} Nc6 {[%emt 0:00:22]} 3. Bc4 {[%emt 0:00:23]} Be7 {[%emt 0:01:14]} 4. O-O {[%emt 0:01:30]} Nf6 {[%emt 0:00:39]} 5. d3 {[%emt 0:00:20]} O-O {[%emt 0:02:56]} 6. Re1 {[%emt 0:02:46]} d6 {[%emt 0:00:21]} 7. c3 {[%emt 0:01:24]} Na5 {[%emt 0:03:10]} 8. Bb5 {[%emt 0:01:01]} c5 {[%emt 0:03:08]} 9. Nbd2 {[%emt 0:08:30]} a6 {[%emt 0:00:22]} 10. Ba4 {[%emt 0:00:07]} b5 {[%emt 0:00:26]} 11. Bc2 {[%emt 0:00:11]} Nc6 {[%emt 0:00:41]} 12. Nf1 {[%emt 0:05:37]} h6 {[%emt 0:08:52]} 13. Ng3 {[%emt 0:06:51]} Re8 {[%emt 0:03:33]} 14. h3 {[%emt 0:06:14]} Bf8 {[%emt 0:00:39]} 15. d4 {[%emt 0:06:35]} Qc7 {[%emt 0:08:59]} 16. d5 {[%emt 0:06:45]} Ne7 {[%emt 0:00:56]} 17. Nh4 {[%emt 0:01:34]} g6 {[%emt 0:13:24]} 18. Be3 {[%emt 0:08:57]} Bg7 {[%emt 0:03:00]} 19. Qd2 {[%emt 0:03:32]} Kh7 {[%emt 0:00:17]} 20. Nf3 {[%emt 0:03:18]} Neg8 {[%emt 0:03:01]} 21. Nh2 {[%emt 0:01:07]} Qe7 {[%emt 0:03:08]} 22. a4 {[%emt 0:03:00]} Bd7 {[%emt 0:00:22]} 23. Ra2 {[%emt 0:06:29]} Reb8 {[%emt 0:06:22]} 24. axb5 {[%emt 0:06:33]} axb5 {[%emt 0:01:22]} 25. Rea1 {[%emt 0:01:24]} Qe8 {[%emt 0:04:00]} 26. b3 {[%emt 0:03:05]} Qc8 {[%emt 0:04:11]} 27. Bd1 {[%emt 0:01:41]} Qb7 {[%emt 0:13:09]} 28. b4 {[%emt 0:01:35]} c4 {[%emt 0:01:55]} 29. Ba7 {[%emt 0:05:27]} Rf8 {[%emt 0:04:47]} 30. Ra5 {[%emt 0:00:22]} h5 {[%emt 0:01:43]} 31. Be3 {[%emt 0:00:38]} h4 {[%emt 0:03:26]} 32. Ngf1 {[%emt 0:01:17]} Nxe4 {[%emt 0:00:16]} 33. Qc2 {[%emt 0:02:20]} Bf5 {[%emt 0:03:12]} 34. Bg4 {[%emt 0:00:33]} Bxg4 {[%emt 0:01:52]} 35. Qxe4 {[%emt 0:00:40]} Bf5 {[%emt 0:00:15]} 36. Qxh4+ {[%emt 0:00:23]} Bh6 {[%emt 0:00:52]} 37. g4 {[%emt 0:01:06]} Bd3 {[%emt 0:00:54]} 38. Bxh6 {[%emt 0:00:53]} 1-0

[Event "94th FRA-ch Open C 2019"]
[Site "Chartres"]
[Date "2019.08.22"]
[Round "6.1"]
[White "Leclerc, Alain"]
[Black "Brun, Pierre"]
[Result "1/2-1/2"]
[ECO "C02"]
[WhiteElo "1787"]
[BlackElo "1648"]
[Annotator "NA"]
[PlyCount "61"]
[EventDate "2019.08.17"]
[EventType "swiss"]
[EventCountry "FRA"]
[SourceTitle "playchess.com"]
[Source "ChessBase"]
[SourceQuality "1"]
[TimeControl "40/5400+30:1800+30"]

1. e4 {[%emt 0:00:00]} e6 {[%emt 0:00:00]} 2. d4 {[%emt 0:00:00]} d5 {[%emt 0:00:00]} 3. e5 {[%emt 0:00:12]} c5 {[%emt 0:00:00]} 4. c3 {[%emt 0:00:04]} Nc6 {[%emt 0:00:00]} 5. Nf3 {[%emt 0:00:05]} Bd7 {[%emt 0:00:02]} 6. Be2 {[%emt 0:03:36]} f6 {[%emt 0:01:50]} 7. exf6 {[%emt 0:00:42]} Nxf6 {[%emt 0:00:09]} 8. O-O {[%emt 0:00:04]} cxd4 {[%emt 0:00:23]} 9. Nxd4 {[%emt 0:03:55]} e5 {[%emt 0:01:49]} 10. Nb3 {[%emt 0:05:41]} Bd6 {[%emt 0:06:02]} 11. Bg5 {[%emt 0:06:44]} Be6 {[%emt 0:00:59]} 12. N1d2 {[%emt 0:01:13]} O-O {[%emt 0:01:09]} 13. Nf3 {[%emt 0:03:01]} Qc7 {[%emt 0:01:41]} 14. h3 {[%emt 0:03:55]} Rad8 {[%emt 0:14:37]} 15. Nh2 {[%emt 0:09:11]} e4 {[%emt 0:06:48]} 16. Ng4 {[%emt 0:00:16]} Bf4 {[%emt 0:01:51]} 17. Nxf6+ {[%emt 0:01:10]} gxf6 {[%emt 0:00:15]} 18. Bxf4 {[%emt 0:01:17]} Qxf4 {[%emt 0:00:12]} 19. Nd4 {[%emt 0:08:55]} Nxd4 {[%emt 0:07:05]} 20. Qxd4 {[%emt 0:01:39]} Qg5 {[%emt 0:00:25]} 21. Qe3 {[%emt 0:01:32]} Qg7 {[%emt 0:01:40]} 22. Kh2 {[%emt 0:00:42]} b6 {[%emt 0:01:17]} 23. Qg3 {[%emt 0:02:22]} f5 {[%emt 0:01:56]} 24. Qxg7+ {[%emt 0:11:34]} Kxg7 {[%emt 0:00:15]} 25. Rad1 {[%emt 0:02:05]} f4 {[%emt 0:01:10]} 26. Rd4 {[%emt 0:00:22]} Kf6 {[%emt 0:03:58]} 27. Rfd1 {[%emt 0:01:53]} Ke5 {[%emt 0:01:18]} 28. Re1 {[%emt 0:09:36]} Rg8 {[%emt 0:05:40]} 29. Bd1 {[%emt 0:03:50]} Rc8 {[%emt 0:02:54]} 30. Be2 {[%emt 0:04:12]} a5 {[%emt 0:04:09]} 31. a3 {[%emt 0:03:44]} 1/2-1/2

[Event "94th FRA-ch Open C 2019"]
[Site "Chartres"]
[Date "2019.08.22"]
[Round "6.2"]
[White "Sithisak, Remi"]
[Black "Masalles, Gabriel"]
[Result "1-0"]
[ECO "E60"]
[WhiteElo "1635"]
[BlackElo "1723"]
[Annotator "NA"]
[PlyCount "119"]
[EventDate "2019.08.17"]
[EventType "swiss"]
[EventCountry "FRA"]
[SourceTitle "playchess.com"]
[Source "ChessBase"]
[SourceQuality "1"]
[TimeControl "40/5400+30:1800+30"]

1. d4 {[%emt 1:30:30]} Nf6 {[%emt 0:00:00]} 2. c4 {[%emt 0:00:00]} g6 {[%emt 0:00:06]} 3. h4 {[%emt 0:00:00]} Bg7 {[%emt 0:02:44]} 4. Nc3 {[%emt 0:00:00]} d6 {[%emt 0:01:25]} 5. e4 {[%emt 0:00:00]} O-O {[%emt 0:01:30]} 6. h5 {[%emt 0:00:00]} Nc6 {[%emt 0:10:51]} 7. h6 {[%emt 0:00:00]} Bh8 {[%emt 0:00:31]} 8. Bg5 {[%emt 0:00:00]} Nd7 {[%emt 0:08:36]} 9. Nf3 {[%emt 0:00:00]} Bf6 {[%emt 0:10:10]} 10. Bxf6 {[%emt 0:00:00]} exf6 {[%emt 0:06:08]} 11. Bd3 {[%emt 0:00:00]} Re8 {[%emt 0:03:19]} 12. O-O {[%emt 0:00:00]} Nf8 {[%emt 0:00:31]} 13. d5 {[%emt 0:00:00]} Ne5 {[%emt 0:01:21]} 14. Nxe5 {[%emt 0:00:00]} fxe5 {[%emt 0:01:33]} 15. f4 {[%emt 0:00:00]} Qh4 {[%emt 0:12:32]} 16. fxe5 {[%emt 0:00:00]} Rxe5 {[%emt 0:02:29]} 17. Qf3 {[%emt 0:00:00]} Re7 {[%emt 0:01:44]} 18. e5 {[%emt 0:00:00]} Qd4+ {[%emt 0:08:29]} 19. Rf2 {[%emt 0:00:00]} Qxe5 {[%emt 0:02:16]} 20. Re2 {[%emt 0:00:00]} Qd4+ {[%emt 0:01:28]} 21. Qf2 {[%emt 0:00:00]} Qxf2+ {[%emt 0:01:17]} 22. Rxf2 {[%emt 0:00:00]} Re3 {[%emt 0:01:46]} 23. Bc2 {[%emt 0:00:00]} a6 {[%emt 0:02:18]} 24. Ne4 {[%emt 0:00:00]} f5 {[%emt 0:04:48]} 25. Raf1 {[%emt 0:00:00]} Nd7 {[%emt 0:01:26]} 26. Rf4 {[%emt 0:02:50]} Ne5 {[%emt 0:04:27]} 27. Nf6+ {[%emt 0:04:00]} Kh8 {[%emt 0:02:25]} 28. Kf2 {[%emt 0:00:26]} g5 {[%emt 0:02:43]} 29. Kxe3 {[%emt 0:01:42]} gxf4+ {[%emt 0:00:04]} 30. Rxf4 {[%emt 0:00:32]} Nf7 {[%emt 0:02:03]} 31. Rh4 {[%emt 0:03:09]} Ne5 {[%emt 0:01:40]} 32. b3 {[%emt 0:00:48]} Ng4+ {[%emt 0:01:34]} 33. Nxg4 {[%emt 0:00:23]} fxg4 {[%emt 0:00:01]} 34. Bd1 {[%emt 0:01:10]} Bf5 {[%emt 0:01:12]} 35. Bxg4 {[%emt 0:00:23]} Re8+ {[%emt 0:00:52]} 36. Kf3 {[%emt 0:00:37]} Bb1 {[%emt 0:00:10]} 37. a3 {[%emt 0:01:07]} Ba2 {[%emt 0:00:15]} 38. Bd7 {[%emt 0:00:44]} Rf8+ {[%emt 0:00:26]} 39. Rf4 {[%emt 0:00:06]} Rxf4+ {[%emt 0:00:48]} 40. Kxf4 {[%emt 0:00:02]} Bxb3 {[%emt 0:00:53]} 41. Bc8 {[%emt 0:30:36]} Bxc4 {[%emt 0:05:29]} 42. Bxb7 {[%emt 0:00:00]} Kg8 {[%emt 0:00:43]} 43. g4 {[%emt 0:00:00]} Kf7 {[%emt 0:02:12]} 44. g5 {[%emt 0:00:00]} Kg6 {[%emt 0:02:57]} 45. Bc6 {[%emt 0:00:00]} Kf7 {[%emt 0:01:12]} 46. Kf5 {[%emt 0:00:00]} Bd3+ {[%emt 0:00:20]} 47. Kg4 {[%emt 0:00:00]} Be2+ {[%emt 0:02:11]} 48. Kf4 {[%emt 0:00:00]} Bc4 {[%emt 0:00:29]} 49. Bb7 {[%emt 0:00:00]} Kg6 {[%emt 0:00:56]} 50. Bc8 {[%emt 0:00:00]} Kf7 {[%emt 0:12:02]} 51. Be6+ {[%emt 0:00:00]} Kf8 {[%emt 0:00:41]} 52. g6 {[%emt 0:00:36]} hxg6 {[%emt 0:01:02]} 53. Kg5 {[%emt 0:00:18]} Bd3 {[%emt 0:06:53]} 54. Kf6 {[%emt 0:00:13]} g5 {[%emt 0:00:06]} 55. Bf5 {[%emt 0:00:25]} Bxf5 {[%emt 0:00:50]} 56. Kxf5 {[%emt 0:00:10]} a5 {[%emt 0:00:30]} 57. Kxg5 {[%emt 0:00:42]} a4 {[%emt 0:00:26]} 58. Kg6 {[%emt 0:00:13]} Kg8 {[%emt 0:00:17]} 59. h7+ {[%emt 0:00:13]} Kh8 {[%emt 0:00:03]} 60. Kh6 {[%emt 0:00:08]} 1-0

[Event "94th FRA-ch Open C 2019"]
[Site "Chartres"]
[Date "2019.08.22"]
[Round "6.3"]
[White "Cregut, Marian"]
[Black "Guliyev, Tofig"]
[Result "1/2-1/2"]
[ECO "B52"]
[WhiteElo "1717"]
[BlackElo "1615"]
[Annotator "NA"]
[PlyCount "71"]
[EventDate "2019.08.17"]
[EventType "swiss"]
[EventCountry "FRA"]
[SourceTitle "playchess.com"]
[Source "ChessBase"]
[SourceQuality "1"]
[TimeControl "40/5400+30:1800+30"]

1. e4 {[%emt 0:00:00]} c5 {[%emt 0:00:01]} 2. Nf3 {[%emt 0:00:01]} d6 {[%emt 0:00:19]} 3. Bb5+ {[%emt 0:00:45]} Bd7 {[%emt 0:00:54]} 4. Bxd7+ {[%emt 0:00:34]} Nxd7 {[%emt 0:00:32]} 5. O-O {[%emt 0:04:57]} Ngf6 {[%emt 0:00:50]} 6. Re1 {[%emt 0:00:49]} e6 {[%emt 0:00:26]} 7. d4 {[%emt 0:03:06]} cxd4 {[%emt 0:02:33]} 8. Qxd4 {[%emt 0:01:05]} Be7 {[%emt 0:02:32]} 9. c4 {[%emt 0:02:14]} O-O {[%emt 0:00:55]} 10. Bg5 {[%emt 0:05:48]} Qc7 {[%emt 0:05:29]} 11. Nc3 {[%emt 0:03:35]} a6 {[%emt 0:00:39]} 12. Rac1 {[%emt 0:04:36]} Rac8 {[%emt 0:01:36]} 13. b3 {[%emt 0:02:18]} Rfd8 {[%emt 0:06:09]} 14. h3 {[%emt 0:03:51]} h6 {[%emt 0:03:40]} 15. Bh4 {[%emt 0:01:08]} Ne5 {[%emt 0:00:52]} 16. Nxe5 {[%emt 0:02:51]} dxe5 {[%emt 0:00:09]} 17. Qe3 {[%emt 0:00:23]} g5 {[%emt 0:22:03]} 18. Bg3 {[%emt 0:07:10]} Bc5 {[%emt 0:08:42]} 19. Qf3 {[%emt 0:54:19]} Nd7 {[%emt 0:02:35]} 20. Red1 {[%emt 0:00:00]} Qc6 {[%emt 0:06:45]} 21. Rd3 {[%emt 0:00:00]} Kg7 {[%emt 0:08:02]} 22. Rcd1 {[%emt 0:00:00]} f6 {[%emt 0:01:35]} 23. h4 {[%emt 0:00:00]} Qc7 {[%emt 0:00:30]} 24. Qg4 {[%emt 0:00:00]} Nf8 {[%emt 0:00:30]} 25. hxg5 {[%emt 0:00:00]} hxg5 {[%emt 0:05:11]} 26. Kf1 {[%emt 0:00:00]} Rxd3 {[%emt 0:01:01]} 27. Rxd3 {[%emt 0:00:00]} Rd8 {[%emt 0:00:09]} 28. Rxd8 {[%emt 0:00:00]} Qxd8 {[%emt 0:00:02]} 29. Qd1 {[%emt 0:00:00]} Qd4 {[%emt 0:02:57]} 30. Qxd4 {[%emt 0:00:00]} exd4 {[%emt 0:00:36]} 31. Na4 {[%emt 0:00:00]} Bb4 {[%emt 0:00:16]} 32. Nb2 {[%emt 0:00:00]} e5 {[%emt 0:00:29]} 33. Nd3 {[%emt 0:00:00]} Be7 {[%emt 0:03:06]} 34. f3 {[%emt 0:00:00]} Nd7 {[%emt 0:14:55]} 35. Be1 {[%emt 0:08:00]} Kf7 {[%emt 0:00:30]} 36. Bg3 {[%emt 0:00:30]} 1/2-1/2

[Event "94th FRA-ch Open C 2019"]
[Site "Chartres"]
[Date "2019.08.22"]
[Round "6.4"]
[White "Chaillou, Vincent"]
[Black "Arendo, Marc"]
[Result "1-0"]
[ECO "C31"]
[WhiteElo "1654"]
[BlackElo "1694"]
[Annotator "NA"]
[PlyCount "113"]
[EventDate "2019.08.17"]
[EventType "swiss"]
[EventCountry "FRA"]
[SourceTitle "playchess.com"]
[Source "ChessBase"]
[SourceQuality "1"]
[TimeControl "40/5400+30:1800+30"]

1. e4 {[%emt 0:00:00]} e5 {[%emt 0:00:00]} 2. f4 {[%emt 0:00:00]} d5 {[%emt 0:00:00]} 3. exd5 {[%emt 0:00:00]} Qxd5 {[%emt 0:01:24]} 4. Nc3 {[%emt 0:00:03]} Qe6 {[%emt 0:00:04]} 5. fxe5 {[%emt 0:05:25]} Qxe5+ {[%emt 0:00:10]} 6. Qe2 {[%emt 0:00:07]} Bd6 {[%emt 0:00:07]} 7. Nf3 {[%emt 0:00:07]} Qxe2+ {[%emt 0:00:08]} 8. Bxe2 {[%emt 0:00:07]} Nf6 {[%emt 0:00:11]} 9. Nb5 {[%emt 0:00:52]} Nc6 {[%emt 0:00:52]} 10. Nxd6+ {[%emt 0:01:46]} cxd6 {[%emt 0:00:07]} 11. c3 {[%emt 0:00:36]} Bf5 {[%emt 0:00:23]} 12. d4 {[%emt 0:00:39]} O-O {[%emt 0:00:28]} 13. Bf4 {[%emt 0:00:47]} Rad8 {[%emt 0:00:12]} 14. Bg5 {[%emt 0:00:35]} Rfe8 {[%emt 0:00:08]} 15. Bxf6 {[%emt 0:00:31]} gxf6 {[%emt 0:00:02]} 16. Kf2 {[%emt 0:01:09]} d5 {[%emt 0:00:05]} 17. Rhe1 {[%emt 0:00:49]} Re6 {[%emt 0:00:13]} 18. Bb5 {[%emt 0:02:01]} Rde8 {[%emt 0:00:16]} 19. Re2 {[%emt 0:00:21]} a6 {[%emt 0:00:13]} 20. Rxe6 {[%emt 0:00:15]} fxe6 {[%emt 0:00:09]} 21. Bf1 {[%emt 0:00:43]} e5 {[%emt 0:36:22]} 22. dxe5 {[%emt 0:03:16]} fxe5 {[%emt 0:00:08]} 23. Re1 {[%emt 0:08:22]} Kf7 {[%emt 0:14:48]} 24. Ke3 {[%emt 0:03:49]} Kf6 {[%emt 0:06:54]} 25. h3 {[%emt 0:01:10]} h6 {[%emt 0:08:20]} 26. g4 {[%emt 0:00:21]} Be6 {[%emt 0:01:10]} 27. Bg2 {[%emt 0:02:54]} d4+ {[%emt 0:14:27]} 28. cxd4 {[%emt 0:00:10]} exd4+ {[%emt 0:00:29]} 29. Kd2 {[%emt 0:00:20]} Rd8 {[%emt 0:00:22]} 30. b3 {[%emt 0:01:11]} Bd5 {[%emt 0:06:42]} 31. Nh4 {[%emt 0:02:56]} Ne5 {[%emt 0:01:54]} 32. Bxd5 {[%emt 0:00:45]} Rxd5 {[%emt 0:00:06]} 33. Rf1+ {[%emt 0:00:25]} Kg5 {[%emt 0:03:13]} 34. Nf3+ {[%emt 0:01:20]} Nxf3+ {[%emt 0:03:22]} 35. Rxf3 {[%emt 0:00:05]} h5 {[%emt 0:00:05]} 36. gxh5 {[%emt 0:01:12]} Kxh5 {[%emt 0:00:03]} 37. Rf4 {[%emt 0:02:57]} d3 {[%emt 0:00:49]} 38. Rf3 {[%emt 0:00:37]} Kh4 {[%emt 0:00:54]} 39. Rxd3 {[%emt 0:00:31]} Rg5 {[%emt 0:00:36]} 40. Kc3 {[%emt 0:00:20]} a5 {[%emt 0:00:34]} 41. a3 {[%emt 0:31:15]} b5 {[%emt 0:11:17]} 42. Kd4 {[%emt 0:00:00]} Rf5 {[%emt 0:01:00]} 43. b4 {[%emt 0:00:00]} a4 {[%emt 0:00:43]} 44. Re3 {[%emt 0:00:00]} Rg5 {[%emt 0:00:08]} 45. Rc3 {[%emt 0:00:00]} Rf5 {[%emt 0:00:17]} 46. Ke4 {[%emt 0:00:00]} Rg5 {[%emt 0:00:09]} 47. Kf4 {[%emt 0:00:00]} Rd5 {[%emt 0:00:11]} 48. Ke4 {[%emt 0:00:00]} Rg5 {[%emt 0:00:08]} 49. Kd4 {[%emt 0:00:00]} Rf5 {[%emt 0:00:20]} 50. Rc5 {[%emt 0:00:00]} Rf3 {[%emt 0:00:11]} 51. Rxb5 {[%emt 0:00:00]} Rxa3 {[%emt 0:00:04]} 52. Ra5 {[%emt 0:00:00]} Kxh3 {[%emt 0:12:09]} 53. b5 {[%emt 0:00:00]} Kg4 {[%emt 0:10:57]} 54. b6 {[%emt 0:00:00]} Rb3 {[%emt 0:01:13]} 55. Kc5 {[%emt 0:00:00]} a3 {[%emt 0:00:24]} 56. Kc6 {[%emt 0:00:00]} Rc3+ {[%emt 0:01:26]} 57. Kb7 {[%emt 0:00:00]} 1-0